[Event "*** MasterClass Titled Tuesday Blitz"]
[Site "Chess.com"]
[Date "2017.09.05"]
[Round "4"]
[White "Aariow"]
[Black "cheese111"]
[Result "1-0"]
[WhiteElo "2369"]
[BlackElo "2297"]
[TimeControl "180+2"]
[EndTime "13:57:08 PDT"]
[Termination "Aariow won by resignation"]

1. Nf3 {[%clk 0:03:01.9]} 1... Nf6 {[%clk 0:02:57.6]} 2. g3 {[%clk 0:03:03.1]}
2... g6 {[%clk 0:02:59]} 3. b3 {[%clk 0:03:04.6]} 3... Bg7 {[%clk 0:03:00.1]} 4.
Bb2 {[%clk 0:03:06.5]} 4... O-O {[%clk 0:03:01.4]} 5. Bg2 {[%clk 0:03:07.6]}
5... d6 {[%clk 0:03:02.9]} 6. d4 {[%clk 0:03:08.4]} 6... c5 {[%clk 0:03:03.1]}
7. c4 {[%clk 0:03:08.6]} 7... cxd4 {[%clk 0:03:00.6]} 8. Nxd4 {[%clk 0:03:09]}
8... Qb6 {[%clk 0:02:57.9]} 9. O-O {[%clk 0:03:06]} 9... Nc6 {[%clk 0:02:58.7]}
10. Nc2 {[%clk 0:03:05.1]} 10... Bf5 {[%clk 0:02:56.9]} 11. Nc3 {[%clk
0:03:04.3]} 11... Rac8 {[%clk 0:02:57.1]} 12. Ne3 {[%clk 0:03:05.1]} 12... Be6
{[%clk 0:02:55.4]} 13. Qd2 {[%clk 0:03:01.9]} 13... Rfd8 {[%clk 0:02:54.8]} 14.
Ncd5 {[%clk 0:02:55]} 14... Bxd5 {[%clk 0:02:52.8]} 15. Nxd5 {[%clk 0:02:47.6]}
15... Nxd5 {[%clk 0:02:53.2]} 16. Bxg7 {[%clk 0:02:48.2]} 16... Kxg7 {[%clk
0:02:55.2]} 17. Bxd5 {[%clk 0:02:46.4]} 17... Qd4 {[%clk 0:02:21.4]} 18. Qxd4+
{[%clk 0:02:40.7]} 18... Nxd4 {[%clk 0:02:23.3]} 19. Bxb7 {[%clk 0:02:42]} 19...
Nxe2+ {[%clk 0:02:24.2]} 20. Kg2 {[%clk 0:02:43.7]} 20... Rc7 {[%clk 0:02:25.9]}
21. Bd5 {[%clk 0:02:40.3]} 21... e6 {[%clk 0:02:23.7]} 22. Bf3 {[%clk
0:02:41.2]} 22... Nd4 {[%clk 0:02:24.1]} 23. Rad1 {[%clk 0:02:42.7]} 23... Nxf3
{[%clk 0:02:24.5]} 24. Kxf3 {[%clk 0:02:43.7]} 24... Rc5 {[%clk 0:02:17.6]} 25.
Rd4 {[%clk 0:02:44.3]} 25... Rf5+ {[%clk 0:02:02.9]} 26. Kg2 {[%clk 0:02:44.8]}
26... Ra5 {[%clk 0:02:03.6]} 27. Rd2 {[%clk 0:02:35.4]} 27... Kf6 {[%clk
0:02:04.5]} 28. Rfd1 {[%clk 0:02:35.4]} 28... Ke7 {[%clk 0:02:05.6]} 29. f4
{[%clk 0:02:28.9]} 29... h5 {[%clk 0:02:02.1]} 30. Kf3 {[%clk 0:02:30.2]} 30...
Rc5 {[%clk 0:02:02.9]} 31. Ke3 {[%clk 0:02:28.4]} 31... a5 {[%clk 0:01:52]} 32.
Rd4 {[%clk 0:02:28.6]} 32... Rc6 {[%clk 0:01:49.9]} 33. Kd3 {[%clk 0:02:24.8]}
33... Re8 {[%clk 0:00:39.1]} 34. Re1 {[%clk 0:02:17.6]} 34... Kf6 {[%clk
0:00:35.8]} 35. Kc3 {[%clk 0:02:14.3]} 35... d5 {[%clk 0:00:35.3]} 36. Rxd5
{[%clk 0:02:10.6]} 36... exd5 {[%clk 0:00:33.4]} 37. Rxe8 {[%clk 0:02:11.5]}
37... dxc4 {[%clk 0:00:34.8]} 38. bxc4 {[%clk 0:02:12.1]} 38... Kf5 {[%clk
0:00:33.8]} 39. h3 {[%clk 0:02:05.4]} 39... f6 {[%clk 0:00:26.2]} 40. Kd4 {[%clk
0:02:03.5]} 40... Rd6+ {[%clk 0:00:25.8]} 41. Kc5 {[%clk 0:02:04.5]} 41... Rd3
{[%clk 0:00:23.7]} 42. Kb6 {[%clk 0:02:02.3]} 42... Rxg3 {[%clk 0:00:19.5]} 43.
c5 {[%clk 0:01:57.3]} 43... Ra3 {[%clk 0:00:18.8]} 44. Re2 {[%clk 0:01:56.3]}
44... Rc3 {[%clk 0:00:18.5]} 45. Rf2 {[%clk 0:01:54.5]} 45... Ke4 {[%clk
0:00:14.1]} 46. c6 {[%clk 0:01:49.7]} 46... g5 {[%clk 0:00:12.5]} 47. fxg5
{[%clk 0:01:49.6]} 47... fxg5 {[%clk 0:00:14.5]} 48. c7 {[%clk 0:01:49.7]} 48...
g4 {[%clk 0:00:10.7]} 49. hxg4 {[%clk 0:01:50.3]} 49... hxg4 {[%clk 0:00:12.7]}
50. Rf6 {[%clk 0:01:50.2]} 50... Rxc7 {[%clk 0:00:05.4]} 51. Kxc7 {[%clk
0:01:51]} 51... g3 {[%clk 0:00:07.4]} 52. Kb6 {[%clk 0:01:51.5]} 52... g2 {[%clk
0:00:07.3]} 53. Rg6 {[%clk 0:01:52.1]} 53... Kf3 {[%clk 0:00:09.3]} 54. Kxa5
{[%clk 0:01:53.2]} 54... Kf2 {[%clk 0:00:11.3]} 55. Kb6 {[%clk 0:01:54]} 55...
g1=Q {[%clk 0:00:13.3]} 56. Rxg1 {[%clk 0:01:55]} 56... Kxg1 {[%clk 0:00:15.3]}
57. a4 {[%clk 0:01:56.4]} 57... Kf2 {[%clk 0:00:17.3]} 58. a5 {[%clk 0:01:58.3]}
58... Ke3 {[%clk 0:00:19]} 59. a6 {[%clk 0:02:00.2]} 1-0

[Event "*** MasterClass Titled Tuesday Blitz"]
[Site "Chess.com"]
[Date "2017.09.05"]
[Round "4"]
[White "MITerryble"]
[Black "Oneofmyturns"]
[Result "1-0"]
[WhiteElo "2696"]
[BlackElo "2471"]
[TimeControl "180+2"]
[EndTime "13:57:08 PDT"]
[Termination "MITerryble won by resignation"]

1. d4 {[%clk 0:03:01.9]} 1... Nf6 {[%clk 0:03:00.3]} 2. Nf3 {[%clk 0:03:02.9]}
2... d5 {[%clk 0:03:00.7]} 3. c4 {[%clk 0:03:03.6]} 3... e6 {[%clk 0:03:01.9]}
4. e3 {[%clk 0:03:04.3]} 4... Be7 {[%clk 0:02:53]} 5. Bd3 {[%clk 0:03:04.7]}
5... dxc4 {[%clk 0:02:51.1]} 6. Bxc4 {[%clk 0:03:05.4]} 6... a6 {[%clk
0:02:52.6]} 7. O-O {[%clk 0:03:04.6]} 7... O-O {[%clk 0:02:53.1]} 8. a3 {[%clk
0:03:03.4]} 8... b5 {[%clk 0:02:50.3]} 9. Ba2 {[%clk 0:03:04.1]} 9... c5 {[%clk
0:02:51.2]} 10. Qe2 {[%clk 0:03:01.8]} 10... Nbd7 {[%clk 0:02:50.9]} 11. dxc5
{[%clk 0:03:00.4]} 11... Bxc5 {[%clk 0:02:48.9]} 12. b4 {[%clk 0:03:01.2]} 12...
Bb6 {[%clk 0:02:26.6]} 13. Bb2 {[%clk 0:03:02.2]} 13... Qe7 {[%clk 0:02:27.4]}
14. Nbd2 {[%clk 0:02:50.3]} 14... Bb7 {[%clk 0:02:27.2]} 15. Rac1 {[%clk
0:02:51]} 15... Rac8 {[%clk 0:02:27.7]} 16. Bb1 {[%clk 0:02:48.8]} 16... Rxc1
{[%clk 0:02:19.7]} 17. Rxc1 {[%clk 0:02:49.8]} 17... Rc8 {[%clk 0:02:21.2]} 18.
Rd1 {[%clk 0:02:51.1]} 18... h6 {[%clk 0:02:18.6]} 19. Nb3 {[%clk 0:02:37.6]}
19... Bd5 {[%clk 0:02:12.5]} 20. Nbd4 {[%clk 0:02:38.5]} 20... Ne4 {[%clk
0:02:13.7]} 21. Nf5 {[%clk 0:02:32.1]} 21... exf5 {[%clk 0:02:07.5]} 22. Rxd5
{[%clk 0:02:33]} 22... Ndf6 {[%clk 0:02:00.8]} 23. Rxf5 {[%clk 0:02:30.5]} 23...
Nc3 {[%clk 0:01:56.4]} 24. Qc2 {[%clk 0:02:23.3]} 24... Qc7 {[%clk 0:01:30.6]}
25. Rxf6 {[%clk 0:02:12.6]} 25... gxf6 {[%clk 0:01:32.5]} 26. Qh7+ {[%clk
0:02:13]} 26... Kf8 {[%clk 0:01:34.1]} 27. Bf5 {[%clk 0:02:03.6]} 27... Rd8
{[%clk 0:01:05.9]} 28. g3 {[%clk 0:01:57.6]} 28... Qc6 {[%clk 0:00:58.1]} 29.
Kg2 {[%clk 0:01:53.3]} 29... Bc7 {[%clk 0:00:53.4]} 30. Qxh6+ {[%clk 0:01:39.1]}
30... Ke7 {[%clk 0:00:52.1]} 31. Qh4 {[%clk 0:01:26.6]} 31... Be5 {[%clk
0:00:48.9]} 32. Qg4 {[%clk 0:01:11.8]} 32... Qd5 {[%clk 0:00:39.7]} 33. Bxc3
{[%clk 0:01:06.2]} 33... Bxc3 {[%clk 0:00:39.6]} 34. h4 {[%clk 0:01:07.7]} 34...
Bb2 {[%clk 0:00:35.2]} 35. h5 {[%clk 0:01:00.1]} 35... Bxa3 {[%clk 0:00:35.9]}
36. h6 {[%clk 0:01:01.5]} 36... Qc4 {[%clk 0:00:32.5]} 37. Be4 {[%clk
0:00:57.1]} 37... Bxb4 {[%clk 0:00:27.7]} 38. Nh4 {[%clk 0:00:58.2]} 38... Re8
{[%clk 0:00:22.4]} 39. Qf4 {[%clk 0:00:43.7]} 39... Bd6 {[%clk 0:00:22.2]} 40.
Nf5+ {[%clk 0:00:44.1]} 1-0

[Event "*** MasterClass Titled Tuesday Blitz"]
[Site "Chess.com"]
[Date "2017.09.05"]
[Round "4"]
[White "kikydu96"]
[Black "livestrong04"]
[Result "1-0"]
[WhiteElo "2320"]
[BlackElo "2362"]
[TimeControl "180+2"]
[EndTime "13:57:09 PDT"]
[Termination "kikydu96 won by resignation"]

1. b3 {[%clk 0:03:01.9]} 1... d5 {[%clk 0:02:59.6]} 2. Bb2 {[%clk 0:02:59.8]}
2... Nf6 {[%clk 0:03:00.8]} 3. g3 {[%clk 0:03:01.7]} 3... c5 {[%clk 0:03:01]} 4.
Bg2 {[%clk 0:03:03.4]} 4... g6 {[%clk 0:03:02.3]} 5. Nf3 {[%clk 0:02:57.1]} 5...
Bg7 {[%clk 0:03:02.3]} 6. O-O {[%clk 0:02:58.7]} 6... O-O {[%clk 0:03:03.5]} 7.
d3 {[%clk 0:02:59.9]} 7... Nc6 {[%clk 0:03:04.2]} 8. c4 {[%clk 0:02:58]} 8... d4
{[%clk 0:03:05.1]} 9. Nbd2 {[%clk 0:02:59]} 9... e5 {[%clk 0:03:06.1]} 10. a3
{[%clk 0:02:59.3]} 10... Bg4 {[%clk 0:03:06.4]} 11. h3 {[%clk 0:02:58.7]} 11...
Bf5 {[%clk 0:03:05.4]} 12. Ng5 {[%clk 0:02:56]} 12... Qd7 {[%clk 0:03:05.3]} 13.
Kh2 {[%clk 0:02:55.8]} 13... Rae8 {[%clk 0:03:02.3]} 14. Nge4 {[%clk 0:02:54.5]}
14... b6 {[%clk 0:03:00.5]} 15. b4 {[%clk 0:02:44.3]} 15... Nxe4 {[%clk
0:02:56.5]} 16. Nxe4 {[%clk 0:02:42.7]} 16... cxb4 {[%clk 0:02:52.4]} 17. axb4
{[%clk 0:02:43.2]} 17... Nxb4 {[%clk 0:02:53.5]} 18. Ba3 {[%clk 0:02:43.4]}
18... a5 {[%clk 0:02:53.4]} 19. Qb3 {[%clk 0:02:37.7]} 19... h6 {[%clk
0:02:36.9]} 20. Bxb4 {[%clk 0:02:33.9]} 20... axb4 {[%clk 0:02:37.9]} 21. Qxb4
{[%clk 0:02:35.8]} 21... Bxe4 {[%clk 0:02:36.2]} 22. Bxe4 {[%clk 0:02:35.8]}
22... f5 {[%clk 0:02:38.1]} 23. Bd5+ {[%clk 0:02:35.8]} 23... Kh7 {[%clk
0:02:38.8]} 24. Qxb6 {[%clk 0:02:36.5]} 24... e4 {[%clk 0:02:32.1]} 25. Ra7
{[%clk 0:02:33.5]} 25... Qd8 {[%clk 0:02:29.6]} 26. Qb7 {[%clk 0:02:33]} 26...
Qf6 {[%clk 0:02:25.8]} 27. dxe4 {[%clk 0:02:28.8]} 27... fxe4 {[%clk 0:02:22.9]}
28. Bxe4 {[%clk 0:02:29.9]} 28... Rb8 {[%clk 0:02:06.3]} 29. Qc6 {[%clk
0:02:23]} 29... Qxc6 {[%clk 0:01:54.1]} 30. Bxc6 {[%clk 0:02:24.9]} 30... Rb2
{[%clk 0:01:54.5]} 31. Re7 {[%clk 0:02:25.3]} 31... d3 {[%clk 0:01:52.3]} 32.
exd3 {[%clk 0:02:20.6]} 32... Rfxf2+ {[%clk 0:01:49.1]} 33. Rxf2 {[%clk
0:02:22.5]} 33... Rxf2+ {[%clk 0:01:49.9]} 34. Kg1 {[%clk 0:02:23.2]} 34... Rd2
{[%clk 0:01:50.4]} 35. Be4 {[%clk 0:02:22.8]} 35... h5 {[%clk 0:01:50.1]} 36. h4
{[%clk 0:02:21]} 36... Rc2 {[%clk 0:01:36.5]} 37. Kf1 {[%clk 0:02:19.3]} 37...
Rb2 {[%clk 0:01:02]} 38. Re6 {[%clk 0:02:18]} 38... Kh8 {[%clk 0:00:52.8]} 39.
Rxg6 {[%clk 0:02:17.7]} 39... Bd4 {[%clk 0:00:53.1]} 40. Rg5 {[%clk 0:02:18.4]}
40... Rf2+ {[%clk 0:00:51.1]} 41. Ke1 {[%clk 0:02:19.5]} 41... Rh2 {[%clk
0:00:51.5]} 42. Rxh5+ {[%clk 0:02:19.6]} 42... Kg7 {[%clk 0:00:53.1]} 43. Rg5+
{[%clk 0:02:16.2]} 43... Kf6 {[%clk 0:00:54]} 44. c5 {[%clk 0:02:14.5]} 44...
Rc2 {[%clk 0:00:53.2]} 45. c6 {[%clk 0:02:14.1]} 45... Be3 {[%clk 0:00:54.5]}
46. Rf5+ {[%clk 0:02:12.6]} 46... Ke6 {[%clk 0:00:55.8]} 47. g4 {[%clk
0:02:12.7]} 47... Ra2 {[%clk 0:00:47.9]} 48. Rf3 {[%clk 0:02:09.1]} 48... Bd4
{[%clk 0:00:47]} 49. h5 {[%clk 0:01:54.7]} 49... Bc3+ {[%clk 0:00:43.3]} 50. Kd1
{[%clk 0:01:54.6]} 50... Ba5 {[%clk 0:00:34.4]} 51. h6 {[%clk 0:01:52.2]} 51...
Bc3 {[%clk 0:00:29]} 52. h7 {[%clk 0:01:47.8]} 52... Rh2 {[%clk 0:00:28.5]} 53.
c7 {[%clk 0:01:46]} 53... Kd7 {[%clk 0:00:29.1]} 54. Rf7+ {[%clk 0:01:46.7]}
54... Kc8 {[%clk 0:00:29.9]} 55. Bf5+ {[%clk 0:01:47]} 1-0

[Event "*** MasterClass Titled Tuesday Blitz"]
[Site "Chess.com"]
[Date "2017.09.05"]
[Round "4"]
[White "krzyzan94"]
[Black "3f32"]
[Result "0-1"]
[WhiteElo "2491"]
[BlackElo "2378"]
[TimeControl "180+2"]
[EndTime "13:57:13 PDT"]
[Termination "3f32 won by resignation"]

1. e4 {[%clk 0:03:01.9]} 1... c5 {[%clk 0:02:58.2]} 2. Nf3 {[%clk 0:03:02.5]}
2... d6 {[%clk 0:02:57.6]} 3. d4 {[%clk 0:03:03.2]} 3... cxd4 {[%clk 0:02:59.5]}
4. Nxd4 {[%clk 0:03:04.9]} 4... Nf6 {[%clk 0:03:00.6]} 5. Nc3 {[%clk 0:03:06.3]}
5... a6 {[%clk 0:03:02.2]} 6. Bg5 {[%clk 0:03:06.6]} 6... Nbd7 {[%clk
0:03:02.4]} 7. f4 {[%clk 0:03:07.7]} 7... Qc7 {[%clk 0:03:00.4]} 8. Qf3 {[%clk
0:03:09.1]} 8... e5 {[%clk 0:03:00.1]} 9. Nf5 {[%clk 0:03:03.7]} 9... h6 {[%clk
0:02:57.6]} 10. Bxf6 {[%clk 0:02:53.9]} 10... Nxf6 {[%clk 0:02:59.5]} 11. Ne3
{[%clk 0:02:54.1]} 11... exf4 {[%clk 0:02:52.8]} 12. Qxf4 {[%clk 0:02:49.8]}
12... Be6 {[%clk 0:02:53.2]} 13. Ned5 {[%clk 0:02:46.2]} 13... Bxd5 {[%clk
0:02:50.6]} 14. exd5 {[%clk 0:02:36.1]} 14... Be7 {[%clk 0:02:47.6]} 15. Bd3
{[%clk 0:02:33]} 15... Qc5 {[%clk 0:02:46]} 16. Qa4+ {[%clk 0:01:53.7]} 16...
Kf8 {[%clk 0:02:21.3]} 17. O-O-O {[%clk 0:01:54]} 17... Nxd5 {[%clk 0:02:15.4]}
18. Nxd5 {[%clk 0:01:55.9]} 18... Qxd5 {[%clk 0:02:16.9]} 19. Kb1 {[%clk
0:01:54.3]} 19... Bf6 {[%clk 0:02:16.6]} 20. Bc4 {[%clk 0:01:49.3]} 20... Qxg2
{[%clk 0:02:15.1]} 21. Qd7 {[%clk 0:01:46.4]} 21... Qg6 {[%clk 0:01:53.7]} 22.
Rhg1 {[%clk 0:01:42.9]} 22... Qh5 {[%clk 0:01:54.5]} 23. Rdf1 {[%clk 0:01:02.4]}
23... Rd8 {[%clk 0:01:51.7]} 24. Qxb7 {[%clk 0:01:03.2]} 24... d5 {[%clk
0:01:42]} 25. Bd3 {[%clk 0:01:04.2]} 25... Qxh2 {[%clk 0:01:38.2]} 26. Qb6
{[%clk 0:00:46.3]} 26... Qd6 {[%clk 0:01:28.2]} 27. Qxa6 {[%clk 0:00:42.9]}
27... Qxa6 {[%clk 0:01:06.3]} 28. Bxa6 {[%clk 0:00:44.8]} 28... Rb8 {[%clk
0:01:07.2]} 29. b3 {[%clk 0:00:45.3]} 29... Bc3 {[%clk 0:01:00.4]} 30. Rf3
{[%clk 0:00:43.9]} 30... d4 {[%clk 0:01:01.3]} 31. Bc4 {[%clk 0:00:44.6]} 31...
Rb7 {[%clk 0:00:59.6]} 32. a4 {[%clk 0:00:44.9]} 32... g5 {[%clk 0:00:56.7]} 33.
Rgf1 {[%clk 0:00:45.2]} 33... Rh7 {[%clk 0:00:56.7]} 34. Rf6 {[%clk 0:00:44]}
34... d3 {[%clk 0:00:48]} 35. Bxd3 {[%clk 0:00:37.4]} 35... Bxf6 {[%clk
0:00:48.6]} 36. Bxh7 {[%clk 0:00:39]} 36... Kg7 {[%clk 0:00:49.7]} 37. Be4
{[%clk 0:00:39.4]} 37... Re7 {[%clk 0:00:51.1]} 38. Bd5 {[%clk 0:00:38.1]} 38...
g4 {[%clk 0:00:51.3]} 39. a5 {[%clk 0:00:39]} 39... g3 {[%clk 0:00:49.5]} 40. a6
{[%clk 0:00:39]} 40... Bd4 {[%clk 0:00:46]} 41. Rf4 {[%clk 0:00:36.8]} 41...
Re1+ {[%clk 0:00:42.3]} 0-1

[Event "*** MasterClass Titled Tuesday Blitz"]
[Site "Chess.com"]
[Date "2017.09.05"]
[Round "4"]
[White "popov_m"]
[Black "XDPS"]
[Result "0-1"]
[WhiteElo "2417"]
[BlackElo "2563"]
[TimeControl "180+2"]
[EndTime "13:57:23 PDT"]
[Termination "XDPS won by checkmate"]

1. d4 {[%clk 0:03:01.9]} 1... d5 {[%clk 0:03:00.5]} 2. Bf4 {[%clk 0:03:02.4]}
2... Nf6 {[%clk 0:02:59.2]} 3. e3 {[%clk 0:03:03.3]} 3... e6 {[%clk 0:03:00.7]}
4. Nd2 {[%clk 0:03:03.6]} 4... Bd6 {[%clk 0:03:02.1]} 5. Bg3 {[%clk 0:03:04.8]}
5... c5 {[%clk 0:03:00]} 6. c3 {[%clk 0:03:05.4]} 6... O-O {[%clk 0:02:59.2]} 7.
Ngf3 {[%clk 0:03:06.1]} 7... Qc7 {[%clk 0:03:00.2]} 8. Bd3 {[%clk 0:03:03.1]}
8... Nbd7 {[%clk 0:02:58.5]} 9. Qe2 {[%clk 0:02:54]} 9... e5 {[%clk 0:02:58.1]}
10. dxe5 {[%clk 0:02:54.9]} 10... Nxe5 {[%clk 0:02:57.6]} 11. Nxe5 {[%clk
0:02:55.7]} 11... Bxe5 {[%clk 0:02:59.5]} 12. Nf3 {[%clk 0:02:56.1]} 12... Bxg3
{[%clk 0:02:56.3]} 13. hxg3 {[%clk 0:02:56.9]} 13... Re8 {[%clk 0:02:52.2]} 14.
Rh4 {[%clk 0:02:28.6]} 14... h6 {[%clk 0:02:47.5]} 15. Qc2 {[%clk 0:02:19.9]}
15... Bg4 {[%clk 0:02:33.4]} 16. O-O-O {[%clk 0:02:19.5]} 16... Rad8 {[%clk
0:02:27.5]} 17. Bf5 {[%clk 0:02:13.8]} 17... Bxf5 {[%clk 0:02:25.7]} 18. Qxf5
{[%clk 0:02:15.7]} 18... Ne4 {[%clk 0:02:12.2]} 19. Nd2 {[%clk 0:01:04.3]} 19...
Re5 {[%clk 0:01:47]} 20. Qf3 {[%clk 0:01:01.7]} 20... Ng5 {[%clk 0:01:40.5]} 21.
Qg4 {[%clk 0:00:57.5]} 21... Ne6 {[%clk 0:01:34.4]} 22. Rxh6 {[%clk 0:00:41.6]}
22... Rg5 {[%clk 0:01:34.6]} 23. Qh4 {[%clk 0:00:35.9]} 23... gxh6 {[%clk
0:01:34.2]} 24. Qxh6 {[%clk 0:00:37.8]} 24... Rg6 {[%clk 0:01:32.9]} 25. Qh4
{[%clk 0:00:38.8]} 25... Qe5 {[%clk 0:00:52]} 26. Rh1 {[%clk 0:00:31.2]} 26...
Qf6 {[%clk 0:00:51.8]} 27. Qh7+ {[%clk 0:00:26.9]} 27... Kf8 {[%clk 0:00:52.8]}
28. f4 {[%clk 0:00:28.5]} 28... Rxg3 {[%clk 0:00:49.1]} 29. Nf3 {[%clk
0:00:21.2]} 29... d4 {[%clk 0:00:46.4]} 30. Ne5 {[%clk 0:00:19.2]} 30... dxe3
{[%clk 0:00:40.4]} 31. Qe4 {[%clk 0:00:19.1]} 31... Nxf4 {[%clk 0:00:19.6]} 32.
Rh7 {[%clk 0:00:16.8]} 32... Ne2+ {[%clk 0:00:18.7]} 33. Kc2 {[%clk 0:00:17.1]}
33... Rd2+ {[%clk 0:00:20.1]} 34. Kb1 {[%clk 0:00:12.9]} 34... Nxc3+ {[%clk
0:00:18.7]} 35. bxc3 {[%clk 0:00:12.2]} 35... Qb6+ {[%clk 0:00:20.1]} 36. Kc1
{[%clk 0:00:12.3]} 36... Qb2# {[%clk 0:00:21]} 0-1

[Event "*** MasterClass Titled Tuesday Blitz"]
[Site "Chess.com"]
[Date "2017.09.05"]
[Round "4"]
[White "DiogenesSinopeus"]
[Black "ftorodent"]
[Result "0-1"]
[WhiteElo "2385"]
[BlackElo "2467"]
[TimeControl "180+2"]
[EndTime "13:57:50 PDT"]
[Termination "ftorodent won by resignation"]

1. d4 {[%clk 0:03:01.9]} 1... f5 {[%clk 0:03:00]} 2. Bg5 {[%clk 0:03:02.4]} 2...
g6 {[%clk 0:02:58.6]} 3. e4 {[%clk 0:03:01.6]} 3... fxe4 {[%clk 0:02:58.8]} 4.
Nc3 {[%clk 0:03:02.9]} 4... Bg7 {[%clk 0:02:59.8]} 5. f3 {[%clk 0:03:03.5]} 5...
d5 {[%clk 0:02:47.7]} 6. Qd2 {[%clk 0:02:55.2]} 6... Nf6 {[%clk 0:02:43.3]} 7.
O-O-O {[%clk 0:02:53.2]} 7... O-O {[%clk 0:02:43.8]} 8. fxe4 {[%clk 0:02:45]}
8... Nxe4 {[%clk 0:02:39.9]} 9. Nxe4 {[%clk 0:02:45.2]} 9... dxe4 {[%clk
0:02:41.5]} 10. Bc4+ {[%clk 0:02:46.4]} 10... Kh8 {[%clk 0:02:42.5]} 11. Ne2
{[%clk 0:02:45.3]} 11... Nc6 {[%clk 0:02:42.8]} 12. c3 {[%clk 0:02:43.4]} 12...
Na5 {[%clk 0:02:43.1]} 13. Bb3 {[%clk 0:02:37.2]} 13... Nxb3+ {[%clk 0:02:42.1]}
14. axb3 {[%clk 0:02:39.1]} 14... Bg4 {[%clk 0:02:40]} 15. h3 {[%clk 0:02:31.5]}
15... Bxe2 {[%clk 0:02:39.8]} 16. Qxe2 {[%clk 0:02:33.4]} 16... Qd5 {[%clk
0:02:41.1]} 17. Qe3 {[%clk 0:02:27.5]} 17... Qxb3 {[%clk 0:02:29.8]} 18. Rhe1
{[%clk 0:02:22.5]} 18... Rf5 {[%clk 0:02:28.9]} 19. Bxe7 {[%clk 0:02:05.8]}
19... Re8 {[%clk 0:02:29.2]} 20. Bb4 {[%clk 0:01:53.8]} 20... a5 {[%clk
0:02:04.8]} 21. Ba3 {[%clk 0:01:54.5]} 21... b5 {[%clk 0:02:05.9]} 22. Bc5
{[%clk 0:01:50.7]} 22... Qc4 {[%clk 0:01:47.4]} 23. Kb1 {[%clk 0:01:46.6]} 23...
b4 {[%clk 0:01:40.9]} 24. cxb4 {[%clk 0:01:47.3]} 24... axb4 {[%clk 0:01:42.1]}
25. Rc1 {[%clk 0:01:35.7]} 25... Qb5 {[%clk 0:01:34]} 26. Qb3 {[%clk 0:01:24.1]}
26... Rf2 {[%clk 0:01:34.6]} 27. Rc2 {[%clk 0:01:22.7]} 27... Rf1 {[%clk
0:01:17.2]} 28. Qxb4 {[%clk 0:01:24]} 28... Rxe1+ {[%clk 0:01:06.1]} 29. Qxe1
{[%clk 0:01:24.5]} 29... e3 {[%clk 0:01:07.7]} 30. Qe2 {[%clk 0:01:19.3]} 30...
Qd7 {[%clk 0:00:59.8]} 31. Rc3 {[%clk 0:01:20.4]} 31... Qf5+ {[%clk 0:00:59.7]}
32. Kc1 {[%clk 0:01:10.9]} 32... Qf2 {[%clk 0:00:55.1]} 33. Kd1 {[%clk
0:01:06.2]} 33... Qg1+ {[%clk 0:00:50.6]} 34. Kc2 {[%clk 0:01:05.4]} 34... h5
{[%clk 0:00:47.3]} 35. Rd3 {[%clk 0:01:02.7]} 35... Bh6 {[%clk 0:00:45.8]} 36.
d5 {[%clk 0:00:55.7]} 36... Qh2 {[%clk 0:00:40.3]} 37. Bd4+ {[%clk 0:00:42.7]}
37... Kh7 {[%clk 0:00:40.2]} 38. Rc3 {[%clk 0:00:33.9]} 38... Qd6 {[%clk
0:00:37.8]} 39. Bxe3 {[%clk 0:00:24.2]} 39... Qe5 {[%clk 0:00:32.5]} 40. Kd2
{[%clk 0:00:15.4]} 40... Qxd5+ {[%clk 0:00:29.7]} 41. Rd3 {[%clk 0:00:09.4]}
41... Bxe3+ {[%clk 0:00:26.2]} 42. Qxe3 {[%clk 0:00:08.1]} 42... Qxg2+ {[%clk
0:00:27]} 0-1

[Event "*** MasterClass Titled Tuesday Blitz"]
[Site "Chess.com"]
[Date "2017.09.05"]
[Round "4"]
[White "tomsishere"]
[Black "Carolina-moon"]
[Result "1-0"]
[WhiteElo "2275"]
[BlackElo "2154"]
[TimeControl "180+2"]
[EndTime "13:58:04 PDT"]
[Termination "tomsishere won by checkmate"]

1. d4 {[%clk 0:03:00.5]} 1... f5 {[%clk 0:02:59.1]} 2. c4 {[%clk 0:03:00.2]}
2... Nf6 {[%clk 0:03:00]} 3. Nc3 {[%clk 0:03:00.5]} 3... g6 {[%clk 0:03:01.5]}
4. h4 {[%clk 0:03:00.3]} 4... Bg7 {[%clk 0:02:59.2]} 5. h5 {[%clk 0:03:01.4]}
5... gxh5 {[%clk 0:02:58.6]} 6. Bg5 {[%clk 0:02:51.5]} 6... O-O {[%clk
0:02:51.1]} 7. e3 {[%clk 0:02:51.4]} 7... Qe8 {[%clk 0:02:46.6]} 8. Bd3 {[%clk
0:02:46.6]} 8... e6 {[%clk 0:02:45]} 9. Nge2 {[%clk 0:02:46.2]} 9... Qg6 {[%clk
0:02:37.7]} 10. Bxf6 {[%clk 0:02:44.3]} 10... Qxf6 {[%clk 0:02:37.2]} 11. Nf4
{[%clk 0:02:44.4]} 11... h4 {[%clk 0:02:32.3]} 12. Nh5 {[%clk 0:02:39.6]} 12...
Qg5 {[%clk 0:02:30.7]} 13. Nxg7 {[%clk 0:02:39.4]} 13... Kxg7 {[%clk 0:02:27.5]}
14. Qe2 {[%clk 0:02:36.7]} 14... Nc6 {[%clk 0:02:25.1]} 15. O-O-O {[%clk
0:02:37]} 15... Ne7 {[%clk 0:02:23.4]} 16. g3 {[%clk 0:02:36.2]} 16... hxg3
{[%clk 0:01:52.7]} 17. Rdg1 {[%clk 0:02:34.6]} 17... Ng6 {[%clk 0:01:52.7]} 18.
Rxg3 {[%clk 0:02:33.5]} 18... Qf6 {[%clk 0:01:50.8]} 19. Qh5 {[%clk 0:02:26]}
19... Rh8 {[%clk 0:01:44.3]} 20. Nb5 {[%clk 0:02:12.7]} 20... d6 {[%clk
0:01:27.5]} 21. Nxc7 {[%clk 0:01:36.3]} 21... Rb8 {[%clk 0:01:26.7]} 22. d5
{[%clk 0:01:06.3]} 22... e5 {[%clk 0:01:21.9]} 23. Kb1 {[%clk 0:01:03.9]} 23...
Bd7 {[%clk 0:01:22.3]} 24. Ne6+ {[%clk 0:00:38.1]} 24... Bxe6 {[%clk 0:01:22.5]}
25. dxe6 {[%clk 0:00:37.3]} 25... Qxe6 {[%clk 0:00:59.2]} 26. Bxf5 {[%clk
0:00:32.5]} 26... Qf6 {[%clk 0:01:00.1]} 27. Qh6+ {[%clk 0:00:21.7]} 27... Kf7
{[%clk 0:00:59.9]} 28. Be4 {[%clk 0:00:22.8]} 28... Ke7 {[%clk 0:00:36.6]} 29.
Rf3 {[%clk 0:00:23.2]} 29... Qe6 {[%clk 0:00:29.1]} 30. Qg7+ {[%clk 0:00:22.8]}
30... Kd8 {[%clk 0:00:28.5]} 31. Bxg6 {[%clk 0:00:23.4]} 31... Qg4 {[%clk
0:00:22.7]} 32. Qxh8+ {[%clk 0:00:20.3]} 32... Kc7 {[%clk 0:00:23.5]} 33. Qxh7+
{[%clk 0:00:18.8]} 33... Kb6 {[%clk 0:00:24.7]} 34. Bh5 {[%clk 0:00:18.1]} 34...
Qg2 {[%clk 0:00:23.6]} 35. Rd1 {[%clk 0:00:18.3]} 35... Rc8 {[%clk 0:00:19.7]}
36. Rxd6+ {[%clk 0:00:15]} 36... Ka5 {[%clk 0:00:20.6]} 37. Rd5+ {[%clk
0:00:15.1]} 37... Ka6 {[%clk 0:00:18.8]} 38. Rf6+ {[%clk 0:00:15.5]} 38... b6
{[%clk 0:00:19.4]} 39. Qd3 {[%clk 0:00:14.4]} 39... Qh1+ {[%clk 0:00:16.1]} 40.
Bd1 {[%clk 0:00:14.4]} 40... Qf1 {[%clk 0:00:08]} 41. Qxf1 {[%clk 0:00:14.1]}
41... Rc5 {[%clk 0:00:09.6]} 42. Rxc5 {[%clk 0:00:13.4]} 42... e4 {[%clk
0:00:09.2]} 43. Rc8 {[%clk 0:00:14.1]} 43... Kb7 {[%clk 0:00:10.1]} 44. Qh3
{[%clk 0:00:14.2]} 44... Ka6 {[%clk 0:00:12.1]} 45. Qd7 {[%clk 0:00:13.9]} 45...
Ka5 {[%clk 0:00:14.1]} 46. Qb5# {[%clk 0:00:15.1]} 1-0